Cogmind - Beta 14 @@@ ROGUE MODE // 2024.08.26 @ 17:11:45 Player: MadBadger Result: Destroyed by S-10 Pest with Light Assault Rifle Performance ------------- Evolutions (1) 500 Regions Visited (2) 400 Robots Destroyed (50) 250 Value Destroyed (1149) 1149 Prototype IDs (1) 20 Alien Tech Used (0) 0 Bonus (0) 0 TOTAL SCORE: 2319 Bonus ------- None Cogmind --------- Core Integrity 0/400 Matter 300/300 Energy 92/100 System Corruption 0% Temperature Cool (0) Movement Treading (160) Location -9/Materials Parts ------- > --- POWER (1) -------- (None) > --- PROPULSION (3) --- Improved Treads > --- UTILITY (2) ------ Large Storage Unit Signal Interpreter > --- WEAPON (3) ------- Small Laser > --- INVENTORY (15) --- Light Nuclear Core Improved Treads Signal Interpreter Terrain Scan Processor Datajack Peak State ------------ > --- POWER ------------ Improved Ion Engine > --- PROPULSION ------- Improved Treads Improved Treads > --- UTILITY ---------- Large Storage Unit Signal Interpreter > --- WEAPON ----------- Particle Gun Heavy Assault Rifle Heavy Assault Rifle > --- INVENTORY -------- Improved Ion Engine Improved Treads Signal Interpreter Medium Laser Small Laser Light Cannon Datajack [Rating: 14] Favorites ----------- Power Improved Ion Engine Engine Improved Ion Engine Propulsion Improved Treads Treads Improved Treads Leg Aluminum Leg Utility Large Storage Unit Storage Large Storage Unit Processor Signal Interpreter Weapon Heavy Assault Rifle Energy Gun Medium Laser Ballistic Gun Heavy Assault Rifle Ballistic Cannon Light Cannon Build | -11 -10 -9 ------- Run | Yrd Mat Mat Slots Evolved 2 | . . 2 Power . | . . . Propulsion 1 | . . 1 Utility . | . . . Weapon 1 | . . 1 Parts Attached 39 | 7 16 16 Power 9 | 1 5 3 Engine 9 | 1 5 3 Core . | . . . Reactor . | . . . Propulsion 12 | 2 4 6 Treads 9 | 2 4 3 Leg 3 | . . 3 Wheel . | . . . Hover . | . . . Flight . | . . . Utility 4 | 1 2 1 Device . | . . . Storage 2 | 1 1 . Processor 2 | . 1 1 Hackware . | . . . Protection . | . . . Artifact . | . . . Weapon 14 | 3 5 6 Energy Gun 7 | 2 1 4 Energy Cannon . | . . . Ballistic Gun 6 | 1 4 1 Ballistic Cannon 1 | . . 1 Launcher . | . . . Special Weapon . | . . . Impact Weapon . | . . . Slashing Weapon . | . . . Piercing Weapon . | . . . Special Melee Weapon . | . . . Unidentified Prototypes 1 | . . 1 Parts Lost 19 | . 2 17 Power 5 | . 1 4 Propulsion 7 | . . 7 Utility . | . . . Weapon 7 | . 1 6 Highest Loss Streak 6 | . 1 6 To Critical Strikes 2 | . . 2 Average Slot Usage (%) 75 | . 82 66 Engine 10 | . 11 8 Treads 21 | . 26 13 Leg 2 | . . 5 Storage 12 | . 14 11 Processor 5 | . 3 7 Energy Gun 7 | . 9 5 Ballistic Gun 14 | . 16 10 Ballistic Cannon 1 | . . 3 Peak Build Rating 14 | 6 12 14 Average Rating 9 | 5 9 9 On Entrance 6 | . 6 12 Naked Turns . | . . . Heaviest Build 37 | 12 37 36 Greatest Support 69 | 40 46 69 Greatest Overweight (x) 9 | . 7 9 Average Overweight (x) . | . . . Largest Inventory Capacity 15 | 8 15 15 Average Capacity 13 | 7 13 15 Most Carried 11 | 4 11 9 Average Carried 7 | 2 8 6 Final Capacity 15 | 8 15 15 Final Carried 8 | 4 8 5 Class Distribution -------------------- 90% | Mutant 7% | Gunner Dominant Class ---------------- Mutant | -10/Materials Mutant | -9/Materials Resources | -11 -10 -9 ----------- Run | Yrd Mat Mat Matter Collected 1081 | 256 466 359 Remotely . | . . . Salvage Created 1731 | . 892 839 Parts 104 | . 44 60 Haulers Intercepted . | . . . Recyclers Shooed 2 | . . 2 Parts Field Recycled . | . . . Retrieved Matter . | . . . Parts Self-Destructed . | . . . Prevented . | . . . Kills | -11 -10 -9 ------- Run | Yrd Mat Mat Combat Hostiles Destroyed 33 | . 12 21 Guns 25 | . 12 13 Cannons 8 | . . 8 Classes Destroyed 8 | . 4 4 Worker 4 | . 1 3 Builder 3 | . . 3 Recycler 6 | . 4 2 Watcher 4 | . 3 1 Swarmer 7 | . . 7 Grunt 24 | . 12 12 Duelist 1 | . . 1 Sentry 1 | . . 1 Best Kill Streak 6 | . 2 6 Combat Bots Only 5 | . 2 5 Max Kills in Single Turn 1 | . 1 1 Gunslinging . | . . . Exploded . | . . . Melee . | . . . Uniques/NPCs Destroyed . | . . . Combat | -11 -10 -9 -------- Run | Yrd Mat Mat Hostile Shots Fired 310 | . 76 234 Missed 74 | . 15 59 Damage Taken 2943 | . 737 2206 Core 554 | . 145 409 Absorbed by Shields . | . . . Core Remaining (%) 71 | 100 42 . Volleys Fired 171 | . 76 95 Largest 3 | . 2 3 Hottest 130 | . 73 130 Shots Fired 279 | . 131 148 Gun 253 | . 131 122 Cannon 26 | . . 26 Launcher . | . . . Special . | . . . Kinetic 162 | . 82 80 Thermal 111 | . 49 62 Explosive . | . . . Electromagnetic 6 | . . 6 Robot Hit Streak 12 | . 8 12 Robot Miss Streak 5 | . 5 4 Penetration Max . | . . . Secondary Targets 1 | . . 1 Max Gunslinging Chain 1 | . . 1 Shots Hit Robots 177 | . 82 95 Core Hits 76 | . 32 44 Critical Kills 1 | . 1 . Critical Parts Destroyed 1 | . 1 . Critical Strikes 10 | . 4 6 Burn 4 | . 2 2 Destroy 2 | . 2 . Blast 4 | . . 4 Melee Attacks . | . . . Impact . | . . . Slashing . | . . . Piercing . | . . . Sneak Attacks . | . . . Combat Hostiles . | . . . Follow-up Attacks . | . . . Damage Inflicted 2588 | . 1168 1420 Guns 2235 | . 1168 1067 Cannons 353 | . . 353 Explosions . | . . . Melee . | . . . Ramming . | . . . Kinetic 1621 | . 718 903 Thermal 864 | . 450 414 Explosive . | . . . Electromagnetic 103 | . . 103 Impact . | . . . Slashing . | . . . Piercing . | . . . Highest Corruption 3 | . 3 . Average Corruption 2 | . 2 . Corruption Purged . | . . . Corruption Blocked . | . . . Effects 38 | . 38 . Message Errors 8 | . 8 . Matter Fused 7 | . 7 . Heat Flow Errors 4 | . 4 . Energy Discharges 6 | . 6 . Parts Rejected 1 | . 1 . Parts Fused 1 | . 1 . Data Loss (minor) 5 | . 5 . Data Loss (major) 2 | . 2 . Alerts 3 | . 3 . Weapon Failures 1 | . 1 . Overload Shots . | . . . Overflow Damage . | . . . Projectiles . | . . . Explosions . | . . . Melee . | . . . Knockbacks 5 | . . 5 Impact . | . . . Kinetic 4 | . . 4 Secondary 1 | . . 1 Self-Inflicted Damage . | . . . Shots . | . . . Rammed . | . . . Targets Rammed . | . . . Kicked . | . . . Crushed . | . . . Highest Temperature 332 | . 332 310 Average Temperature 89 | . 64 126 Received Heat Transfer 1299 | . 417 882 Effects 3 | . 1 2 Interference 2 | . . 2 Damage (minor) 1 | . 1 . Siege Activations . | . . . Robots Corrupted . | . . . Combat Hostiles . | . . . Parts Fried . | . . . Impact Corruptions . | . . . Robots Melted . | . . . Combat Hostiles . | . . . Parts Melted 1 | . . 1 Heat Transferred 2694 | . 1480 1214 Parts Sabotaged . | . . . Parts Stolen . | . . . Parts Stripped . | . . . Power Chain Reactions . | . . . Alert | -11 -10 -9 ------- Run | Yrd Mat Mat Peak Influence 222 | . 171 222 Initial 16 | . . 16 Average 52 | . 35 83 Maximum Alert Level 1 | . . 1 Low Security (%) 95 | 100 100 88 Level 1 4 | . . 11 Level 2 . | . . . Level 3 . | . . . Level 4 . | . . . Level 5 . | . . . High Security . | . . . Max Security . | . . . Squads Dispatched 6 | . 2 4 Investigation 1 | . 1 . Extermination . | . . . Reinforcement 5 | . 1 4 Assault . | . . . Garrison . | . . . Intercept . | . . . Searches Triggered . | . . . Construction Impeded 1 | . . 1 Haulers Reinforced . | . . . Active Scanning Responses . | . . . Cargo Convoy Interrupts . | . . . Stealth | -11 -10 -9 --------- Run | Yrd Mat Mat Distress Signals 2 | . . 2 Communications Jammed . | . . . Distress Signals . | . . . Times Spotted 55 | . 26 29 Peak Tracking Total 5 | . 3 5 Tactical Retreats 4 | . 3 1 Traps | -11 -10 -9 ------- Run | Yrd Mat Mat Traps Triggered 6 | . 6 . Indirectly . | . . . Trap Hack Attempts . | . . . Triggered . | . . . Disarmed . | . . . Reprogrammed . | . . . Reused . | . . . Traps Extracted . | . . . Installed . | . . . Triggered . | . . . Machines | -11 -10 -9 ---------- Run | Yrd Mat Mat Machines Disabled . | . . . Max in Single Turn . | . . . Machines Repaired . | . . . Machines Dismantled . | . . . Machines Sabotaged . | . . . Overloaded Fab Kills . | . . . Hacking | -11 -10 -9 --------- Run | Yrd Mat Mat Machines Accessed . | . . . Terminals . | . . . Fabricators . | . . . Repair Stations . | . . . Recycling Units . | . . . Scanalyzers . | . . . Garrison Access . | . . . Total Hacks . | . . . Successful . | . . . Failed . | . . . Catastrophic . | . . . Database Lockouts . | . . . Manual . | . . . Terminals . | . . . Fabricators . | . . . Repair Stations . | . . . Recycling Units . | . . . Scanalyzers . | . . . Garrison Access . | . . . Terminal Hacks . | . . . Fabricator Hacks . | . . . Repair Station Hacks . | . . . Recycling Unit Hacks . | . . . Scanalyzer . | . . . Garrison Access Hacks . | . . . Unauthorized Hacks . | . . . Terminals . | . . . Fabricators . | . . . Repair Stations . | . . . Recycling Units . | . . . Scanalyzers . | . . . Garrison Access . | . . . Data Cores Recovered . | . . . Used . | . . . Hacking Detections . | . . . Full Trace Events . | . . . Feedback Events . | . . . Feedback Blocked . | . . . Robot Schematics Acquired . | . . . Robots Built . | . . . Authchips . | . . . Time . | . . . Total Robot Build Rating . | . . . Part Schematics Acquired . | . . . Parts Built . | . . . Authchips . | . . . Time . | . . . Total Part Build Rating . | . . . Parts Repaired . | . . . Time . | . . . Parts Recycled . | . . . Recycled Matter . | . . . Retrieved Matter . | . . . Retrieved Components . | . . . Parts Scanalyzed . | . . . Part Schematics Acquired . | . . . Parts Damaged . | . . . Bothacking | -11 -10 -9 ------------ Run | Yrd Mat Mat Used RIF Installer . | . . . Robots Hacked . | . . . Non-combat . | . . . Combat . | . . . Robot Hacks Applied . | . . . Relay Couplers Released . | . . . Fabnet Peak Effective % . | . . . Robots Rewired . | . . . Allies Hacked . | . . . Hacks Repelled . | . . . Allies | -11 -10 -9 -------- Run | Yrd Mat Mat Total Allies . | . . . Largest Group . | . . . Highest-Rated Group . | . . . Highest-Rated Ally . | . . . Total Orders . | . . . Ally Attacks . | . . . Total Damage . | . . . Kills . | . . . Allies Corrupted . | . . . Allies Melted . | . . . Intel | -11 -10 -9 ------- Run | Yrd Mat Mat Robot Analysis Total . | . . . Derelict Logs Recovered . | . . . Drone Launches . | . . . Drone Recoveries . | . . . Exploration | -11 -10 -9 ------------- Run | Yrd Mat Mat Turns Passed 3604 | 118 2063 1423 Spaces Moved 1749 | 67 1088 594 Core 60 | 2 18 40 Treads 1576 | 65 1070 441 Legs 113 | . . 113 Wheels . | . . . Hover . | . . . Flight . | . . . Fastest Speed 50 | 50 160 120 Average Speed 173 | 156 165 189 Slowest Speed 500 | 160 400 500 Overloaded Moves . | . . . Propulsion Burnouts . | . . . Robots Hopped . | . . . Cave-ins Triggered . | . . . Exploration Rate (%) 48 | 5 94 45 Regions Visited 2 Branch Regions . Pre-discovered Areas . | . . . Known Exits Taken 1 | . 1 . Unknown Exits Taken 1 | 1 . . Scrap Searched . | . . . Spaces Dug . | . . . Terrain Destroyed . | . . . Melee . | . . . Projectile . | . . . AOE . | . . . Terrain Rammed . | . . . Walls Destroyed . | . . . Machines Disabled . | . . . Actions | -11 -10 -9 --------- Run | Yrd Mat Mat Total 2047 | 77 1220 750 Wait 52 | . 13 39 Move 1747 | 66 1087 594 Hop . | . . . Pick Up 21 | 3 14 4 Fast Attach 25 | 7 7 11 Attach 10 | . 5 5 Detach 4 | 1 3 . Swap 4 | . 4 . Drop 13 | . 11 2 Fire 171 | . 76 95 Melee . | . . . Ram . | . . . Kick . | . . . Crush . | . . . Escape Stasis . | . . . Rewire . | . . . Trap . | . . . Miscellaneous . | . . . Route ------- -11/Scrapyard -10/Materials (discovered 5 exits: *Mat x3 / *Min / [*Sub]) -9/Materials (discovered 3 exits: *Mat x2 / [*Min]) History --------- Turn | Location | Event 12 | -11/Scrapyard | Discovered new exit (range 15) 119 | -11/Scrapyard | Entered Materials 281 | -10/Materials | Discovered new exit (range 9) 318 | -10/Materials | Build established: Mutant 918 | -10/Materials | Discovered new exit (range 16) 967 | -10/Materials | Identified exit to Materials 1180 | -10/Materials | Identified exit to Mines 1390 | -10/Materials | Discovered exit to Materials (range 8) 1799 | -10/Materials | Discovered exit to Materials (range 15) 1831 | -10/Materials | Core integrity fell below 50% 1900 | -10/Materials | Discovered new exit (range 9) 2182 | -10/Materials | Entered another Materials area 2182 | -9/Materials | Evolved 2 slots: Propulsion x1, Weapon x1 2584 | -9/Materials | Discovered new exit (range 8) 2631 | -9/Materials | Discovered new exit (range 16) 2693 | -9/Materials | Identified exit to Materials 2845 | -9/Materials | Discovered exit to Materials (range 16) 2941 | -9/Materials | Lost 6 parts (1p2n3w) 3039 | -9/Materials | Core integrity fell below 50% 3248 | -9/Materials | Lost 6 parts (1p3n2w) 3454 | -9/Materials | Core integrity fell below 20% 3605 | -9/Materials | Destroyed by S-10 Pest with Light Assault Rifle Last Messages --------------- 03545_ Acquired 10 matter. 03545_ R-06 Scavenger collects Lgt. Ion Engine. 03557_ Lgt. Ion Engine destroyed. 03564_ R-06 Scavenger inserts Lgt. Ion Engine into recycling unit. 03565_ Recycling unit begins recycling process. 03566_ Recycling unit begins matter transfer process. 03567_ R-06 Scavenger inserts Welding Torch into recycling unit. 03569_ G-34 Mercenary destroyed. 03570_ R-06 Scavenger inserts Wheel into recycling unit. 03571_ Recycling unit begins recycling process. 03573_ R-06 Scavenger inserts Terrain Scanner into recycling unit. 03577_ U-05 Engineer lays Concrete. 03577_ R-06 Scavenger collects Aluminum Leg. 03578_ U-05 Engineer builds a Wall. 03583_ Tractor Beam melted. 03583_ R-06 Scavenger destroyed. 03583_ U-05 Engineer lays Concrete. 03584_ U-05 Engineer builds a Wall. 03589_ U-05 Engineer lays Concrete. 03590_ U-05 Engineer builds a Wall. Map ----- +----------------------------------------------------+ | ????????????# # #???### ### #???? | | ????????????# """ + ##### ## #???? | | ????????????# """ # T" ## ##??? | | ????????????# """ # " ## ???? | | ????????????# ### ## ## ????? | | ????????????########?# ######## #?????? | | ?????????????????????# #?????# #?????? | | ?????????????????????# #?????# #?????? | | ?????????????????????# #?????# #?????? | | ?????????????????????# ####### #?????? | | ?????????????????????# #?????? | | ?????????????????????# #?????? | | ??????????????######## %[ #?????? | | ??????????????# ############ #?????? | | ??????????????# #??????????# ####### | | ??????????????# #??????????# | | ??????????????# ########??????????# | | ??????????????# #?#"""#??????###### | | ??????????????# ###"Y"######### ##########+## | | ??????????????# # ] # ## | | ??????????????# *# ## # | | ??????????????# """ """ %# =%# # | | ????????????? # """ """ u# = =# # | | ??????????????+ """ """ # |%* # # | | ??????????????# s s %#| # *!# | | ??????????????# / s@ = #= # * # | | ??????????????#! """ %"" # % ##### | | ?????????? """ =Y" ####+############ | | ????????? """ "" = | | ????????? [% % | | ????????? ! | | ???????????### ###################### | | ?????????????###+###### #???????# % # | | ??????????????????????# #???????##% # | | ??????????????????????# #????????#%% """%+ | | ??????????????????????# #????????# ! """%# | | ??????????????????????# #????????# ! """ # | | ??????????????????????# #????????# * # | | ??????????????????????# #????????# # | | ?????????????????????? #????????############# | | ??????????????????????# #????????????????????# | | ??????????????????????# #????????????????????# | | ??????????????????????? ?????????????????????# | | ??????????????????????? ?????????????????????# | | ??????????????????????? ?????????????????????# | | ??????????????????????????????????????????????# | | ???????????????????????????????????????######## | | ???????????????????????????????????????# """" # | | ???????????????????????????????????????# """" # | | ???????????????????????????????????????# """" + | +----------------------------------------------------+ Best States ------------- Heat Dissipation 28 Energy Generation 12 Energy Capacity 265 Matter Stores 300 Matter Capacity 300 Sight Range 16 Terrain Scan Density 10 Evasion (%) 55 Recoil Reduction 3 Item Schematics ----------------- None Robot Schematics ------------------ None Fabricated ------------ Nothing Alien Tech Used ----------------- None Achievements -------------- None Challenges ------------ None Game ------ Seed ThiefSeismicShockpuncher Manual? 0 Play Time 00:24:44 Cumulative 8.4 hours Start 2024.08.26 @ 16:49:35 End 2024.08.26 @ 17:11:45 Sessions 1 Manual Loads 0 Difficulty Rogue Special Mode None Game No. 13 Rogue 13 Adventurer 0 Explorer 0 Win Type - Total 0 Types 0/0/0/0/0/0/0/0/0 Lore% 1 Gallery% 9 Achievement% 10 Wizard Run 0 Options --------- Layout 0 ASCII 0 Keyboard 1 Movement Numpad Keybinds 0 Fullscreen 1 Font 24/Smallcaps Map View 76x50 Zoom Use 0% Tactical HUD 1 Map Filters NONE Filters NONE Steam 1 RUN: 01ab2d9b-7606-4b10-b491-a5fa0c7e6454